bitfinex/quotes_BTCUSD_20241028
["timestamp","ask_amount","ask_price","bid_price","bid_amount"]
[1730118744490,0.03860969,68953.0,68952.0,0.51956352]
[1730118744642,0.03860969,68953.0,68952.0,0.51956341]
[1730118745599,0.03860969,68953.0,68952.0,0.51756341]
[1730118746286,0.03860969,68953.0,68952.0,0.56063495]
[1730118746505,0.03860969,68953.0,68952.0,0.51756341]
[1730118747197,0.000822,68957.0,68955.0,0.160022]
[1730118747423,0.000822,68957.0,68955.0,0.36853311]
[1730118747649,0.000822,68957.0,68955.0,0.36563313]
[1730118747872,0.000822,68957.0,68955.0,0.44773313]
[1730118748102,0.000822,68957.0,68955.0,0.63334757]
[1730118748337,0.000822,68957.0,68955.0,0.48527534]
[1730118748588,0.000822,68957.0,68955.0,0.64434623]
[1730118749287,0.000822,68957.0,68955.0,0.57971962]
[1730118749519,0.000822,68957.0,68955.0,0.57974455]
[1730118749743,0.000822,68957.0,68955.0,0.58274455]
[1730118750849,0.000822,68957.0,68955.0,0.58277475]
[1730118751253,0.000822,68957.0,68955.0,0.66898905]
[1730118751950,0.000822,68957.0,68955.0,0.66158929]
[1730118752154,0.000822,68957.0,68955.0,0.66898741]
[1730118752628,0.000822,68957.0,68955.0,0.67982187]
[1730118753213,0.000822,68957.0,68955.0,0.59360757]
[1730118754313,0.000822,68957.0,68955.0,0.70137545]
[1730118755384,0.000822,68957.0,68955.0,0.43648155]
[1730118755926,0.000822,68957.0,68955.0,0.43648181]
[1730118756464,0.000822,68957.0,68955.0,0.54789937]
[1730118757704,0.000822,68957.0,68955.0,0.54589937]
[1730118758514,0.000822,68957.0,68955.0,0.54589713]
[1730118758939,0.000822,68957.0,68955.0,0.70728523]
[1730118759151,0.00390328,68956.0,68955.0,0.70528523]
[1730118759354,0.00390328,68956.0,68955.0,0.7160823]
[1730118760015,0.00390328,68956.0,68955.0,0.71608227]
[1730118760216,0.00390328,68956.0,68955.0,0.70524781]
[1730118761445,0.00390328,68956.0,68955.0,0.70724775]
[1730118762298,0.00390328,68956.0,68955.0,0.81866531]
[1730118762724,0.00390328,68956.0,68955.0,0.70524775]
[1730118762929,0.00390328,68956.0,68955.0,1.03734811]
[1730118763135,0.00390328,68956.0,68955.0,0.81866531]
[1730118763555,0.00390328,68956.0,68955.0,0.70724775]
[1730118764180,0.00390328,68956.0,68955.0,0.81866531]
[1730118764946,0.00390328,68956.0,68955.0,0.70524775]
[1730118765682,0.00390328,68956.0,68955.0,0.70724775]
[1730118767626,0.00390328,68956.0,68955.0,0.70724566]
[1730118768086,0.00390328,68956.0,68955.0,0.70724505]
[1730118768279,0.00390328,68956.0,68955.0,0.81866261]
[1730118768490,0.00390328,68956.0,68955.0,0.70724505]
[1730118768702,0.00390328,68956.0,68955.0,0.68443147]
[1730118769015,0.000822,68957.0,68956.0,0.16202]
[1730118769254,0.000822,68957.0,68956.0,0.47653108]
[1730118769468,0.000822,68957.0,68956.0,0.48392282]
[1730118769679,0.000822,68957.0,68956.0,0.47191191]
[1730118770312,0.000822,68957.0,68956.0,0.48191191]
[1730118770518,0.000822,68957.0,68956.0,0.48391191]
[1730118771717,0.000822,68957.0,68956.0,0.48891191]
[1730118772323,0.000822,68957.0,68956.0,0.60032947]
[1730118773546,0.000822,68957.0,68956.0,0.61032947]
[1730118773987,0.000822,68957.0,68956.0,0.62234358]
[1730118775029,0.000822,68957.0,68956.0,0.75183697]
[1730118775239,0.000822,68957.0,68956.0,0.75075099]
[1730118775466,0.000822,68957.0,68956.0,0.62733343]
[1730118775674,0.000822,68957.0,68956.0,0.6092576]
[1730118775873,0.000822,68957.0,68956.0,0.6042576]
[1730118776093,0.000822,68957.0,68956.0,0.5942576]
[1730118776314,0.000822,68957.0,68956.0,0.6062576]
[1730118776537,0.000822,68957.0,68956.0,0.6202576]
[1730118776761,0.000822,68957.0,68956.0,0.72818293]
[1730118776976,0.000822,68957.0,68956.0,0.70660596]
[1730118777681,0.000822,68957.0,68956.0,0.72818656]
[1730118777909,0.000822,68957.0,68956.0,0.6202576]
[1730118778145,0.000822,68957.0,68956.0,0.70660179]
[1730118778835,0.000822,68957.0,68956.0,0.72818783]
[1730118779018,0.000822,68957.0,68956.0,0.6202576]
[1730118779957,0.000822,68957.0,68956.0,0.72818783]
[1730118780396,0.000822,68957.0,68956.0,0.6202576]
[1730118780817,0.000822,68957.0,68956.0,0.62024372]
[1730118782179,0.000822,68957.0,68956.0,0.62224372]
[1730118783287,0.000822,68957.0,68956.0,0.62224917]
[1730118783523,0.000822,68957.0,68956.0,0.73366673]
[1730118784168,0.000822,68957.0,68956.0,0.62024917]
[1730118784586,0.000822,68957.0,68956.0,0.60822961]
[1730118784789,0.000822,68957.0,68956.0,0.62025056]
[1730118785460,0.000822,68957.0,68956.0,0.62225056]
[1730118786122,0.000822,68957.0,68956.0,0.73366812]
[1730118786340,0.000822,68957.0,68956.0,0.62225056]
[1730118786587,0.000822,68957.0,68956.0,0.62025056]
[1730118789241,0.000822,68957.0,68956.0,0.62125056]
[1730118789456,0.000822,68957.0,68956.0,0.62538214]
[1730118790320,0.000822,68957.0,68956.0,0.62738214]
[1730118790946,0.000822,68957.0,68956.0,0.61536119]
[1730118791150,0.000822,68957.0,68956.0,0.62538686]
[1730118791792,0.000822,68957.0,68956.0,0.5089693]
[1730118792027,0.000822,68957.0,68956.0,0.62038686]
[1730118792486,0.000822,68957.0,68956.0,0.60836119]
[1730118792694,0.000822,68957.0,68956.0,0.62038736]
[1730118793186,0.000822,68957.0,68956.0,0.60638736]
[1730118793411,0.000822,68957.0,68956.0,0.62038736]
[1730118793625,0.000822,68957.0,68956.0,0.44688156]
[1730118793834,0.000822,68957.0,68956.0,0.44285539]
[1730118794064,0.000822,68957.0,68956.0,0.45487988]
[1730118794312,0.000822,68957.0,68956.0,0.44687988]
[1730118794492,0.000822,68957.0,68956.0,0.45387988]
[1730118794709,0.000822,68957.0,68956.0,0.45587988]
[1730118794904,0.000822,68957.0,68956.0,0.44187988]
[1730118795192,0.000822,68957.0,68956.0,0.43987988]
[1730118795453,0.000822,68957.0,68956.0,0.45387988]
[1730118795687,0.000822,68957.0,68956.0,0.44687988]
[1730118795908,0.000822,68957.0,68956.0,0.43487988]
[1730118796123,0.000822,68957.0,68956.0,0.45487988]
[1730118796347,0.000822,68957.0,68956.0,0.45652588]
[1730118797610,0.000822,68957.0,68956.0,0.45652506]
[1730118797808,0.000822,68957.0,68956.0,0.61605685]
[1730118798252,0.000822,68957.0,68956.0,0.61405685]
[1730118799188,0.000822,68957.0,68956.0,0.69405685]
[1730118799995,0.000822,68957.0,68956.0,0.69605685]
[1730118800994,0.000822,68957.0,68956.0,0.69405685]
[1730118801197,0.000822,68957.0,68956.0,0.69605685]
[1730118802129,0.000822,68957.0,68956.0,0.81247441]
[1730118802286,0.000822,68957.0,68956.0,0.70105685]
[1730118802664,0.000822,68957.0,68956.0,0.81247441]
[1730118804460,0.000822,68957.0,68956.0,0.81047441]
[1730118804644,0.000822,68957.0,68956.0,0.69905685]
[1730118805172,0.000822,68957.0,68956.0,0.65094262]
[1730118805401,0.000822,68957.0,68956.0,0.6509472]
[1730118805793,0.000822,68957.0,68956.0,0.6529472]
[1730118806650,0.000822,68957.0,68956.0,0.87163]
[1730118806865,0.000822,68957.0,68956.0,0.6529472]
[1730118807636,0.000822,68957.0,68956.0,0.6509472]
[1730118808506,0.000822,68957.0,68956.0,0.6529472]
[1730118808862,0.0011876,68960.0,68958.0,0.16592902]
[1730118809065,0.0011876,68960.0,68958.0,0.32846108]
[1730118809274,0.0011876,68960.0,68958.0,0.32846122]
[1730118810560,0.0011876,68960.0,68958.0,0.34146122]
[1730118810747,0.00087319,68983.0,68969.0,0.38374114]
[1730118810971,0.00087319,68983.0,68969.0,0.94065614]
[1730118811176,0.000822,68983.0,68979.0,0.34830258]
[1730118811399,0.000822,68983.0,68979.0,0.62525234]
[1730118811873,0.000822,68983.0,68979.0,0.51383478]
[1730118812315,0.000822,68983.0,68979.0,0.51583478]
[1730118813182,0.000822,68983.0,68979.0,0.4043848]
[1730118813657,0.000822,68983.0,68979.0,0.4183848]
[1730118813807,0.000822,68983.0,68979.0,0.4323848]
[1730118814029,0.00028,68980.0,68979.0,0.4323848]
[1730118814611,5.37741624,69000.0,68979.0,0.4323848]
[1730118814612,0.99991236,68997.0,68996.0,0.149895]
[1730118814821,0.99991236,68997.0,68996.0,0.83199729]
[1730118815047,0.38344831,68997.0,68996.0,0.61531449]
[1730118815263,0.38344831,68997.0,68996.0,0.39547937]
[1730118815482,0.38344831,68997.0,68996.0,0.42529693]
[1730118815904,0.38344831,68997.0,68996.0,0.43029693]
[1730118816134,0.38344831,68997.0,68996.0,0.44429693]
[1730118816574,0.38344831,68997.0,68996.0,0.42569039]
[1730118816787,0.38177252,68997.0,68996.0,0.4302881]
[1730118817015,0.38177252,68997.0,68996.0,0.4402881]
[1730118817261,0.38181252,68997.0,68996.0,0.4362881]
[1730118817717,0.38185252,68997.0,68996.0,0.32987054]
[1730118817928,0.38189252,68997.0,68996.0,0.4412881]
[1730118818143,0.38193252,68997.0,68996.0,0.33887054]
[1730118818371,0.38197252,68997.0,68996.0,0.44569039]
[1730118818599,0.38201252,68997.0,68996.0,0.44569039]
[1730118818806,0.38201252,68997.0,68996.0,0.45069039]
[1730118819019,0.38201252,68997.0,68996.0,0.4552881]
[1730118819514,0.38201252,68997.0,68996.0,0.45069039]
[1730118819917,0.38283552,68997.0,68996.0,0.45069039]
[1730118820091,0.38283552,68997.0,68996.0,0.43469039]
[1730118820293,0.38283552,68997.0,68996.0,0.42069039]
[1730118820503,0.38283552,68997.0,68996.0,0.43469039]
[1730118821129,0.38283552,68997.0,68996.0,0.42069039]
[1730118821602,0.38283552,68997.0,68996.0,0.43469039]
[1730118822526,0.38283552,68997.0,68996.0,0.45069039]
[1730118822844,0.38283552,68997.0,68996.0,0.44169039]
[1730118823049,0.38283552,68997.0,68996.0,0.45269039]
[1730118823274,0.38283552,68997.0,68996.0,0.45469039]
[1730118823891,0.38283552,68997.0,68996.0,0.34327283]
[1730118824126,0.38854272,68997.0,68996.0,0.34327283]
[1730118824529,0.38854272,68997.0,68996.0,0.34127283]
[1730118826658,0.38854272,68997.0,68996.0,0.34327283]
[1730118826806,0.39261732,68997.0,68996.0,0.34327283]
[1730118827015,0.39261732,68997.0,68996.0,0.34127283]
[1730118827236,0.39261732,68997.0,68996.0,0.34327283]
[1730118827467,0.38668727,68997.0,68996.0,0.56195563]
[1730118827675,0.38668727,68997.0,68996.0,0.34127283]
[1730118827676,0.389047,68997.0,68996.0,0.34127283]
[1730118827907,0.389047,68997.0,68996.0,0.32727283]
[1730118828385,0.389047,68997.0,68996.0,0.34127283]
[1730118828837,0.389047,68997.0,68996.0,0.32827283]
[1730118829272,0.389047,68997.0,68996.0,0.34227283]
[1730118829723,0.389047,68997.0,68996.0,0.32827283]
[1730118829941,0.389047,68997.0,68996.0,0.31427283]
[1730118830152,0.389047,68997.0,68996.0,0.32827283]
[1730118830331,0.389047,68997.0,68996.0,0.34227283]
[1730118830532,0.389047,68997.0,68996.0,0.31427283]
[1730118830957,0.389047,68997.0,68996.0,0.32827283]
[1730118831577,0.389047,68997.0,68996.0,0.33285979]
[1730118831772,0.389047,68997.0,68996.0,0.33485979]
[1730118831997,0.389047,68997.0,68996.0,0.34885979]
[1730118832463,0.389047,68997.0,68996.0,0.56918859]
[1730118832654,0.389047,68997.0,68996.0,0.35050579]
[1730118833319,0.389047,68997.0,68996.0,0.56918859]
[1730118833538,0.389047,68997.0,68996.0,0.35050579]
[1730118833986,0.389047,68997.0,68996.0,0.34591883]
[1730118834191,0.389047,68997.0,68996.0,0.35050977]
[1730118834815,0.389047,68997.0,68996.0,0.35585633]
[1730118835065,0.389047,68997.0,68996.0,0.34850977]
[1730118835479,0.389047,68997.0,68996.0,0.35585633]
[1730118836812,0.389047,68997.0,68996.0,0.57453913]
[1730118837034,0.389047,68997.0,68996.0,0.35585633]
[1730118838544,0.389047,68997.0,68996.0,0.36658398]
[1730118839023,0.389047,68997.0,68996.0,0.47800154]
[1730118839233,0.389047,68997.0,68996.0,0.48000154]
[1730118839410,0.389047,68997.0,68996.0,0.47266556]
[1730118839646,0.389047,68997.0,68996.0,0.48002905]
[1730118841190,0.389047,68997.0,68996.0,0.49002905]
[1730118841628,0.389047,68997.0,68996.0,0.48802905]
[1730118842054,0.389047,68997.0,68996.0,0.46533639]
[1730118842261,0.389047,68997.0,68996.0,0.48809482]
[1730118842672,0.389047,68997.0,68996.0,0.49009482]
[1730118842890,0.389047,68997.0,68996.0,0.48809482]
[1730118843113,0.389047,68997.0,68996.0,0.49009482]
[1730118843550,0.389047,68997.0,68996.0,0.48809482]
[1730118845135,0.389047,68997.0,68996.0,0.47809482]
[1730118845773,0.389047,68997.0,68996.0,0.47812273]
[1730118846859,0.389047,68997.0,68996.0,0.48812273]
[1730118847067,0.389047,68997.0,68996.0,0.49012273]
[1730118848154,0.244112,68997.0,68996.0,0.78600553]
[1730118848365,0.244112,68997.0,68996.0,0.56732273]
[1730118848570,0.215125,68997.0,68996.0,0.56732273]
[1730118848972,0.215125,68997.0,68996.0,0.55332273]
[1730118849192,0.099177,68997.0,68996.0,0.55332273]
[1730118849404,0.099177,68997.0,68996.0,0.55653688]
[1730118849610,5.37741624,69000.0,68999.0,0.17376302]
[1730118849826,5.37741624,69000.0,68999.0,0.45846526]
[1730118850231,5.37741624,69000.0,68999.0,0.3470477]
[1730118850462,5.37741624,69000.0,68999.0,0.45846526]
[1730118851291,5.37741624,69000.0,68999.0,0.44846526]
[1730118851526,5.37741624,69000.0,68999.0,0.3370477]
[1730118851745,5.37741624,69000.0,68999.0,0.3320477]
[1730118851970,5.47171624,69000.0,68999.0,0.3320477]
[1730118852177,5.47171624,69000.0,68999.0,0.3460477]
[1730118852390,5.47171624,69000.0,68999.0,0.3600477]
[1730118852598,5.47171624,69000.0,68999.0,0.3320477]
[1730118853077,5.54811624,69000.0,68999.0,0.35613368]
[1730118853279,5.54811624,69000.0,68999.0,0.33913616]
[1730118853492,5.54811624,69000.0,68999.0,0.34213565]
[1730118853713,5.54811624,69000.0,68999.0,0.33504785]
[1730118853939,5.54811624,69000.0,68999.0,0.33113383]
[1730118854442,5.54811624,69000.0,68999.0,0.17628483]
[1730118854677,5.54811624,69000.0,68999.0,0.00761408]
[1730118855099,5.54811624,69000.0,68999.0,0.15992534]
[1730118855314,5.02510084,69000.0,68999.0,0.4624625]
[1730118855550,5.02510084,69000.0,68999.0,0.35104494]
[1730118855787,5.02510084,69000.0,68999.0,0.33204494]
[1730118856005,5.02510084,69000.0,68999.0,0.33504494]
[1730118856228,5.02592384,69000.0,68999.0,0.33504494]
[1730118856441,5.02592384,69000.0,68999.0,0.33204494]
[1730118856652,5.02592384,69000.0,68999.0,0.35604494]
[1730118857109,5.02592384,69000.0,68999.0,0.33204494]
[1730118857319,5.03575439,69000.0,68999.0,0.33204494]
[1730118857522,5.03575439,69000.0,68999.0,0.34204494]
[1730118857732,5.03575439,69000.0,68999.0,0.33813092]
[1730118857933,5.03575439,69000.0,68999.0,0.34204494]
[1730118858194,5.12735439,69000.0,68999.0,0.33313092]
[1730118858416,5.12735439,69000.0,68999.0,0.35604494]
[1730118858819,5.12735439,69000.0,68999.0,0.32126317]
[1730118859247,5.12735439,69000.0,68999.0,0.34426317]
[1730118859450,5.12735439,69000.0,68999.0,0.32788091]
[1730118859748,5.12735439,69000.0,68999.0,0.33526317]
[1730118859950,5.12735439,69000.0,68999.0,0.33404494]
[1730118860113,5.12735439,69000.0,68999.0,0.32588091]
[1730118860331,5.12735439,69000.0,68999.0,0.33666268]
[1730118860736,5.12735439,69000.0,68999.0,0.32588091]
[1730118861078,5.12735439,69000.0,68999.0,0.32587787]
[1730118862816,5.12735439,69000.0,68999.0,0.51387787]
[1730118862817,5.00676839,69000.0,68999.0,0.51387787]
[1730118863058,5.00676839,69000.0,68999.0,0.68373738]
[1730118863059,4.89082439,69000.0,68999.0,0.68373738]
[1730118863257,4.89082439,69000.0,68999.0,0.67740881]
[1730118863489,4.89082439,69000.0,68999.0,0.50311611]
[1730118863689,4.89082439,69000.0,68999.0,0.34403837]
[1730118863813,4.89082439,69000.0,68999.0,0.34203837]
[1730118864023,4.89082439,69000.0,68999.0,0.38513727]
[1730118864225,4.89086439,69000.0,68999.0,0.38513727]
[1730118864436,4.89086439,69000.0,68999.0,0.33203837]
[1730118864644,4.89090439,69000.0,68999.0,0.33203837]
[1730118864899,4.89094439,69000.0,68999.0,0.34603837]
[1730118865108,4.89098439,69000.0,68999.0,0.34603285]
[1730118865352,4.89102439,69000.0,68999.0,0.34603285]
[1730118866149,4.89102439,69000.0,68999.0,0.58077657]
[1730118867124,4.89102439,69000.0,68999.0,0.57177657]
[1730118867347,4.89102439,69000.0,68999.0,0.59332598]
[1730118867553,4.89102439,69000.0,68999.0,0.49312834]
[1730118867738,4.89102439,69000.0,68999.0,0.57930749]
[1730118867956,4.89102439,69000.0,68999.0,0.59330749]
[1730118868394,4.89102439,69000.0,68999.0,0.57730749]
[1730118868587,4.89102439,69000.0,68999.0,0.49111486]
[1730118868826,4.89102439,69000.0,68999.0,0.50511486]
[1730118869042,4.89102439,69000.0,68999.0,0.52076086]
[1730118869477,4.89102439,69000.0,68999.0,0.41230909]
[1730118869699,4.89102439,69000.0,68999.0,0.34766537]
[1730118869912,4.89102439,69000.0,68999.0,0.57139701]
[1730118870137,4.89102439,69000.0,68999.0,0.57139301]
[1730118870344,4.89102439,69000.0,68999.0,0.52074999]
[1730118870535,4.89102439,69000.0,68999.0,0.57893773]
[1730118870748,4.89102439,69000.0,68999.0,0.58093773]
[1730118870878,4.89102439,69000.0,68999.0,0.51974999]
[1730118871078,4.89102439,69000.0,68999.0,0.52174999]
[1730118871284,4.89102439,69000.0,68999.0,0.59393773]
[1730118871743,4.89102439,69000.0,68999.0,0.60793773]
[1730118872381,4.89102439,69000.0,68999.0,0.61293773]
[1730118872544,4.89102439,69000.0,68999.0,0.69263835]
[1730118872754,4.89102439,69000.0,68999.0,0.60645061]
[1730118873645,4.89102439,69000.0,68999.0,0.59245061]
[1730118873896,4.89102439,69000.0,68999.0,0.73573164]
[1730118874108,4.89102439,69000.0,68999.0,0.73345795]
[1730118874470,4.89102439,69000.0,68999.0,0.71945795]
[1730118874674,4.89102439,69000.0,68999.0,0.73345795]
[1730118874877,4.89102439,69000.0,68999.0,0.84487551]
[1730118875109,4.89102439,69000.0,68999.0,0.71559448]
[1730118875487,4.89102439,69000.0,68999.0,0.74646033]
[1730118875723,4.89102439,69000.0,68999.0,0.88187789]
[1730118875931,4.89102439,69000.0,68999.0,0.86787789]
[1730118876159,4.89102439,69000.0,68999.0,0.85589364]
[1730118876359,4.89102439,69000.0,68999.0,0.88186692]
[1730118876558,4.89102439,69000.0,68999.0,0.86988651]
[1730118876772,4.89102439,69000.0,68999.0,0.89586679]
[1730118877205,4.89102439,69000.0,68999.0,0.88186679]
[1730118877633,4.89102439,69000.0,68999.0,0.77044923]
[1730118878069,4.89102439,69000.0,68999.0,0.86878692]
[1730118878271,4.89102439,69000.0,68999.0,0.73958338]
[1730118878468,4.89102439,69000.0,68999.0,0.61816582]
[1730118878767,4.89102439,69000.0,68999.0,0.86866516]
[1730118878975,4.89102439,69000.0,68999.0,0.73946966]
[1730118879500,4.74609439,69000.0,68999.0,0.85088722]
[1730118879731,4.68812239,69000.0,68999.0,0.85088722]
[1730118880261,4.60116439,69000.0,68999.0,0.96314694]
[1730118880468,4.60116439,69000.0,68999.0,0.95375717]
[1730118880671,4.60116439,69000.0,68999.0,0.69524245]
[1730118880871,4.60116439,69000.0,68999.0,0.80466001]
[1730118881083,4.60116439,69000.0,68999.0,0.93007757]
[1730118881530,4.60116439,69000.0,68999.0,0.93207473]
[1730118882162,4.60116439,69000.0,68999.0,0.91807473]
[1730118882603,4.60116439,69000.0,68999.0,0.93207473]
[1730118883030,4.60116439,69000.0,68999.0,0.91807473]
[1730118883253,4.57217839,69000.0,68999.0,0.91807473]
[1730118883512,4.57217839,69000.0,68999.0,0.93207473]
[1730118883743,4.57217839,69000.0,68999.0,0.94607473]
[1730118883971,3.56843558,69000.0,68999.0,1.05749229]
[1730118884201,2.96483927,69000.0,68999.0,1.00811356]
[1730118884438,1.00293254,69000.0,68999.0,1.40133229]
[1730118884662,0.85800254,69000.0,68999.0,0.80391473]
[1730118885103,0.85800254,69000.0,68999.0,0.78991473]
[1730118885369,0.85800254,69000.0,68999.0,0.58107961]
[1730118885591,0.82901654,69000.0,68999.0,0.80391473]
[1730118885823,0.71307254,69000.0,68999.0,0.78991473]
[1730118886054,0.16550648,69000.0,68999.0,0.87871827]
[1730118886307,0.07345432,69012.0,69011.0,0.156824]
[1730118886541,0.07345432,69012.0,69011.0,0.81670041]
[1730118886778,0.07345432,69012.0,69011.0,0.70528285]
[1730118887439,0.07345432,69012.0,69011.0,0.73077742]
[1730118887629,0.07345432,69012.0,69011.0,0.74477742]
[1730118887917,0.07345432,69012.0,69011.0,0.59663029]
[1730118888137,0.07345432,69012.0,69011.0,0.72873043]
[1730118888373,0.07345432,69012.0,69011.0,0.50989531]
[1730118888586,0.07345432,69012.0,69011.0,0.63131287]
[1730118889195,0.07345432,69012.0,69011.0,0.63731287]
[1730118889393,0.07345432,69012.0,69011.0,0.47834197]
[1730118889787,0.07345432,69012.0,69011.0,0.52346236]
[1730118889956,0.07345432,69012.0,69011.0,0.63687823]
[1730118891109,0.07345432,69012.0,69011.0,0.85556103]
[1730118891374,0.07345432,69012.0,69011.0,0.63687823]
[1730118891520,0.2186828,69037.0,69036.0,0.149771]
[1730118891719,0.2186828,69037.0,69036.0,0.30027481]
[1730118891925,0.00108598,69046.0,69040.0,0.144842]
[1730118892127,0.11141756,69045.0,69041.0,0.15050381]
[1730118893274,0.00108598,69046.0,69041.0,0.15050381]
[1730118893492,0.11141756,69045.0,69041.0,0.15050381]
[1730118893714,0.00108598,69044.0,69041.0,0.15050381]
[1730118893956,0.00967453,69044.0,69041.0,0.15050381]
[1730118894174,0.00108598,69044.0,69041.0,0.15050381]
[1730118894391,0.11141756,69042.0,69041.0,0.15750381]
[1730118894622,0.28941756,69042.0,69041.0,0.007]
[1730118894868,0.2990917,69042.0,69037.0,0.00492]
[1730118895085,0.1795,69040.0,69039.0,0.2186828]
[1730118895329,0.1795,69039.0,69038.0,0.15050381]
[1730118895562,0.0991,69038.0,69034.0,0.00492]
[1730118895781,0.0804,69037.0,69035.0,0.15050381]
[1730118896004,0.0889856,69037.0,69036.0,0.00492]
[1730118896224,0.1850856,69037.0,69036.0,0.15542381]
[1730118896444,0.1765,69037.0,69036.0,0.30027481]
[1730118896670,0.18508656,69037.0,69036.0,0.30027481]
[1730118897109,0.1765,69037.0,69036.0,0.30027481]
[1730118897549,0.17654,69037.0,69036.0,0.30427481]
[1730118897821,0.17654,69037.0,69036.0,0.31627481]
[1730118898278,0.08052,69037.0,69036.0,0.32586745]
[1730118898511,0.08056,69037.0,69036.0,0.32586745]
[1730118898734,0.0806,69037.0,69036.0,0.32586745]
[1730118899408,0.0806,69037.0,69036.0,0.32127481]
[1730118899627,0.0806,69037.0,69036.0,0.30986734]
[1730118899854,0.0806,69037.0,69036.0,0.32386734]
[1730118900078,0.0806,69037.0,69036.0,0.33786734]
[1730118900273,0.0806,69037.0,69036.0,0.32386734]
[1730118900765,0.0806,69037.0,69036.0,0.33786734]
[1730118901590,0.0806,69037.0,69036.0,0.50729485]
[1730118901986,0.0806,69037.0,69036.0,0.33786734]
[1730118902566,0.0002,69037.0,69036.0,0.33786734]
[1730118903390,0.0002,69037.0,69036.0,0.50729485]
[1730118903990,0.0002,69037.0,69036.0,0.51120887]
[1730118904411,0.001023,69037.0,69036.0,0.51120887]
[1730118905578,0.001023,69037.0,69036.0,0.52355799]
[1730118905824,0.001023,69037.0,69036.0,0.51161634]
[1730118906062,0.001023,69037.0,69036.0,0.52356533]
[1730118906252,0.001023,69037.0,69036.0,0.49756533]
[1730118906474,0.001023,69037.0,69036.0,0.51156533]
[1730118906706,0.001023,69037.0,69036.0,0.50956533]
[1730118907161,0.001023,69037.0,69036.0,0.51156533]
[1730118907383,0.001023,69037.0,69036.0,0.52356533]
[1730118907615,0.001023,69037.0,69036.0,0.35413782]
[1730118907837,0.001023,69037.0,69036.0,0.3402238]
[1730118908084,0.001023,69037.0,69036.0,0.5112117]
[1730118908320,0.001023,69037.0,69036.0,0.52356533]
[1730118908540,0.001023,69037.0,69036.0,0.35413782]
[1730118909228,0.001023,69037.0,69036.0,0.3502238]
[1730118909495,0.001023,69037.0,69036.0,0.50770232]
[1730118909728,0.001023,69037.0,69036.0,0.53040162]
[1730118909960,0.001023,69037.0,69036.0,0.53431564]
[1730118910187,0.001023,69037.0,69036.0,0.53631564]
[1730118910719,0.001023,69037.0,69036.0,0.53240162]
[1730118910943,0.001023,69037.0,69036.0,0.53040162]
[1730118911407,0.001023,69037.0,69036.0,0.53431564]
[1730118912101,0.001023,69037.0,69036.0,0.53631564]
[1730118913357,0.001023,69037.0,69036.0,0.53431564]
[1730118913823,0.001023,69037.0,69036.0,0.53434097]
[1730118914058,0.001023,69037.0,69036.0,0.52435893]
[1730118914298,0.001023,69037.0,69036.0,0.53634066]
[1730118914535,0.001023,69037.0,69036.0,0.52234066]
[1730118915206,0.001023,69037.0,69036.0,0.52034066]
[1730118915428,0.001023,69037.0,69036.0,0.51705353]
[1730118915927,0.001023,69037.0,69036.0,0.54705353]
[1730118916141,0.0002,69046.0,69045.0,0.16366702]
[1730118916384,0.0002,69046.0,69045.0,0.33689515]
[1730118916631,0.0002,69046.0,69045.0,0.33889515]
[1730118916859,0.0002,69046.0,69045.0,0.3322872]
[1730118917090,0.0002,69046.0,69045.0,0.32796868]
[1730118917315,0.0002,69046.0,69045.0,0.3368827]
[1730118917547,0.0002,69046.0,69045.0,0.3648827]
[1730118918397,0.0002,69046.0,69045.0,0.5935655]
[1730118918616,0.0002,69046.0,69045.0,0.3685552]
[1730118918840,0.0002,69046.0,69045.0,0.3468827]
[1730118919051,0.0002,69046.0,69045.0,0.3608827]
[1730118919272,0.0002,69046.0,69045.0,0.3768827]
[1730118919708,0.0002,69046.0,69045.0,0.3668827]
[1730118919944,0.0002,69046.0,69045.0,0.3768827]
[1730118920165,0.02288801,69046.0,69045.0,0.3768827]
[1730118920384,0.02288801,69046.0,69045.0,0.35417083]
[1730118920385,0.0002,69046.0,69045.0,0.35417083]
[1730118920604,0.0002,69046.0,69045.0,0.35826046]
[1730118920818,0.0002,69046.0,69045.0,0.36285842]
[1730118921303,0.0027,69046.0,69045.0,0.36285842]
[1730118921747,0.0027,69046.0,69045.0,0.36085842]
[1730118922417,0.0027,69046.0,69045.0,0.53228593]
[1730118923301,0.0027,69046.0,69045.0,0.76496873]
[1730118923513,0.0027,69046.0,69045.0,0.54628593]
[1730118924210,1e-06,69046.0,69045.0,0.71570054]
[1730118924450,1e-06,69046.0,69045.0,0.58911812]
[1730118924692,1e-06,69046.0,69045.0,0.54627303]
[1730118925367,1e-06,69046.0,69045.0,0.59973034]
[1730118925842,0.000822,69061.0,69060.0,0.01883402]
[1730118926078,0.000822,69061.0,69060.0,0.49551092]
[1730118926332,0.000822,69061.0,69060.0,0.32108341]
[1730118926564,0.174322,69061.0,69060.0,0.31716939]
[1730118926783,0.174322,69061.0,69060.0,0.32108341]
[1730118927011,0.174322,69061.0,69060.0,0.31716939]
[1730118927231,0.174322,69061.0,69060.0,0.34008341]
[1730118927443,0.077322,69061.0,69060.0,0.34008341]
[1730118927680,0.077322,69061.0,69060.0,0.32608341]
[1730118927927,0.077322,69061.0,69060.0,0.31716939]
[1730118927928,0.178122,69061.0,69060.0,0.31716939]
[1730118928599,0.178122,69061.0,69060.0,0.32216939]
[1730118929055,0.178122,69061.0,69060.0,0.34916939]
[1730118929531,0.178122,69061.0,69060.0,0.17401747]
[1730118929532,0.322921,69061.0,69060.0,0.17401747]
[1730118929758,0.18810214,69061.0,69060.0,0.17401747]
[1730118930213,0.18810214,69061.0,69060.0,0.16642381]
[1730118930449,0.18810214,69061.0,69060.0,0.31122481]
[1730118930670,0.17920798,69061.0,69060.0,0.31422481]
[1730118930882,0.18890579,69061.0,69060.0,0.31981724]
[1730118931458,0.18890579,69061.0,69060.0,0.31981761]
[1730118931659,0.18890579,69061.0,69060.0,0.31522481]
[1730118932221,0.18890579,69061.0,69060.0,0.15642381]
[1730118932457,0.18890579,69061.0,69060.0,0.16542381]
[1730118932902,0.18890579,69061.0,69060.0,0.15542381]
[1730118933110,0.18890579,69061.0,69060.0,0.16042381]
[1730118933342,0.18890579,69061.0,69060.0,0.31981892]
[1730118933343,0.18781981,69061.0,69060.0,0.31981892]
[1730118933567,0.18890579,69061.0,69060.0,0.31481892]
[1730118933772,0.3583333,69061.0,69060.0,0.30481892]
[1730118933982,0.3583333,69061.0,69060.0,0.31481892]
[1730118934208,0.3583333,69061.0,69060.0,0.31381892]
[1730118934829,0.3583333,69061.0,69060.0,0.30922481]
[1730118935058,0.3583333,69061.0,69060.0,0.31381947]
[1730118935267,0.3583333,69061.0,69060.0,0.30481947]
[1730118935695,0.3583333,69061.0,69060.0,0.31681947]